bitfinex/quotes_BTCUSD_20220204
["timestamp","ask_amount","ask_price","bid_price","bid_amount"]
[1643978264643,0.33259417,38014.0,38013.0,0.31384337]
[1643978268508,0.33259417,38014.0,38012.0,112.98874329]
[1643978269209,0.33259417,38014.0,38012.0,112.98777837]
[1643978269410,0.33259417,38014.0,38012.0,113.03777837]
[1643978270013,0.33259417,38014.0,38012.0,112.98777837]
[1643978270443,0.28259417,38013.0,38012.0,113.12038258]
[1643978270744,0.05,38014.0,38012.0,113.07038258]
[1643978271643,0.05,38014.0,38012.0,113.12038258]
[1643978272246,0.33259417,38014.0,38012.0,113.12038258]
[1643978272443,0.33259417,38014.0,38012.0,113.07038258]
[1643978272648,0.33259417,38014.0,38012.0,113.12038258]
[1643978273645,0.33259417,38014.0,38012.0,113.07038258]
[1643978273847,0.01,38013.0,38012.0,113.07038258]
[1643978275094,0.29259417,38013.0,38012.0,113.12038258]
[1643978275297,0.34259417,38013.0,38012.0,113.12038258]
[1643978275495,0.34259417,38013.0,38012.0,113.07038258]
[1643978276197,0.34259417,38013.0,38012.0,112.67559958]
[1643978276398,0.34259417,38013.0,38012.0,112.59299537]
[1643978276797,0.34259417,38013.0,38012.0,112.19820837]
[1643978280146,0.34259417,38013.0,38012.0,111.88540929]
[1643978281993,0.34259417,38013.0,38012.0,111.86577115]
[1643978282195,0.34259417,38013.0,38012.0,111.7627694]
[1643978284999,0.34296645,38013.0,38012.0,111.7627694]
[1643978285198,0.29296645,38013.0,38012.0,111.7627694]
[1643978285748,0.01,38013.0,38012.0,111.7627694]
[1643978285946,0.01,38013.0,38012.0,111.3679684]
[1643978286144,0.34955974,38013.0,38012.0,111.3679684]
[1643978286545,0.01,38013.0,38012.0,111.3679684]
[1643978287449,0.34955974,38013.0,38012.0,111.3679684]
[1643978287946,0.33955974,38013.0,38012.0,110.7640806]
[1643978288146,0.35955974,38013.0,38012.0,110.7640806]
[1643978288351,0.02,38013.0,38012.0,110.7640806]
[1643978288548,0.56185766,38013.0,38012.0,110.00920899]
[1643978288849,0.51955974,38013.0,38012.0,110.00920899]
[1643978289094,0.51955974,38013.0,38012.0,110.00863177]
[1643978289294,0.57205974,38013.0,38012.0,110.00863177]
[1643978289495,0.2325,38013.0,38012.0,110.00863177]
[1643978289894,0.1325,38013.0,38012.0,110.00863177]
[1643978290096,0.47205974,38013.0,38012.0,110.00863177]
[1643978290295,0.57205974,38013.0,38012.0,110.00863177]
[1643978290695,0.2325,38013.0,38012.0,110.00863177]
[1643978290899,0.57207902,38013.0,38012.0,110.00863177]
[1643978291695,0.2325,38013.0,38012.0,110.00863177]
[1643978291896,0.47207902,38013.0,38012.0,110.00863177]
[1643978292295,0.57207902,38013.0,38012.0,110.00863177]
[1643978298194,0.47207902,38013.0,38012.0,110.00863177]
[1643978298595,0.1325,38013.0,38012.0,110.00863177]
[1643978299396,0.1325,38013.0,38012.0,110.30403218]
[1643978301246,0.08,38013.0,38012.0,110.30403218]
[1643978306508,0.145797,38013.0,38012.0,110.30403218]
[1643978308845,0.43537602,38013.0,38012.0,110.30403218]
[1643978309050,0.095797,38013.0,38012.0,110.30403218]
[1643978309746,0.48537602,38013.0,38012.0,110.30403218]
[1643978310045,0.58537602,38013.0,38012.0,110.30403218]
[1643978313395,0.58537602,38013.0,38012.0,110.29235218]
[1643978313596,0.58537602,38013.0,38012.0,109.99695177]
[1643978313796,0.58537602,38013.0,38012.0,109.24204879]
[1643978313797,0.245797,38013.0,38012.0,109.24204879]
[1643978314302,0.48541909,38013.0,38012.0,109.24204879]
[1643978314695,0.4854185,38013.0,38012.0,109.47877173]
[1643978314898,0.5854185,38013.0,38012.0,109.47877173]
[1643978315947,0.5554185,38013.0,38012.0,109.47877173]
[1643978316147,0.5936955,38013.0,38012.0,109.47877173]
[1643978318450,0.77483436,38013.0,38012.0,109.47877173]
[1643978318650,0.5936955,38013.0,38012.0,109.47877173]
[1643978319094,0.254074,38013.0,38012.0,109.56460346]
[1643978319297,0.49371156,38013.0,38012.0,109.56460346]
[1643978319507,0.154074,38013.0,38012.0,109.56460346]
[1643978319697,0.254074,38013.0,38012.0,109.56460346]
[1643978320096,0.59370762,38013.0,38012.0,109.56460346]
[1643978321296,0.59358354,38013.0,38012.0,109.56460346]
[1643978321894,0.59358354,38013.0,38012.0,109.47877173]
[1643978324443,0.59358354,38013.0,38012.0,109.58028098]
[1643978325445,0.59358354,38013.0,38012.0,109.47877173]
[1643978327295,0.8300218,38013.0,38012.0,109.47877173]
[1643978327490,0.59358354,38013.0,38012.0,109.47877173]
[1643978327691,0.7747224,38013.0,38012.0,109.47877173]
[1643978327892,0.59358354,38013.0,38012.0,109.47877173]
[1643978329994,0.7747224,38013.0,38012.0,109.47877173]
[1643978330195,0.59358354,38013.0,38012.0,109.47877173]
[1643978332647,0.49358354,38013.0,38012.0,109.47877173]
[1643978333047,0.49408354,38013.0,38012.0,109.47877173]
[1643978333247,0.49358354,38013.0,38012.0,109.47927173]
[1643978333446,0.49358354,38013.0,38012.0,109.52877173]
[1643978334096,0.49358354,38013.0,38012.0,109.47877173]
[1643978334498,0.49358354,38013.0,38012.0,109.24204879]
[1643978335100,0.15394992,38013.0,38012.0,109.24204879]
[1643978335297,0.25394992,38013.0,38012.0,109.24204879]
[1643978336098,0.47908855,38013.0,38012.0,109.24204879]
[1643978336299,0.25394992,38013.0,38012.0,109.24204879]
[1643978336698,0.15394992,38013.0,38012.0,109.24204879]
[1643978336898,0.33508878,38013.0,38012.0,109.24204879]
[1643978337299,0.43508878,38013.0,38012.0,109.24204879]
[1643978337498,0.25394992,38013.0,38012.0,109.24204879]
[1643978337943,0.25394992,38013.0,38012.0,108.48717148]
[1643978338245,1.09900668,38013.0,38012.0,108.48717148]
[1643978338442,1.11481768,38013.0,38012.0,108.09231048]
[1643978338645,1.14900668,38013.0,38012.0,108.09231048]
[1643978339045,1.14900668,38013.0,38012.0,107.69747148]
[1643978339046,1.45096096,38013.0,38012.0,107.69747148]
[1643978339244,1.14432615,38013.0,38012.0,107.69747148]
[1643978339644,1.14432615,38013.0,38012.0,107.30263248]
[1643978340248,1.14432615,38013.0,38012.0,106.90779148]
[1643978340846,0.84237187,38013.0,38012.0,106.90779148]
[1643978344498,0.627858,38013.0,38012.0,106.90779148]
[1643978344999,0.44671914,38013.0,38012.0,106.90779148]
[1643978345346,0.627858,38013.0,38012.0,106.90779148]
[1643978345549,0.67950181,38013.0,38012.0,106.90779148]
[1643978345746,0.86064067,38013.0,38012.0,106.90779148]
[1643978345948,0.67950181,38013.0,38012.0,106.90779148]
[1643978346148,0.86064067,38013.0,38012.0,106.90779148]
[1643978346648,0.627858,38013.0,38012.0,106.90779148]
[1643978347048,0.44671914,38013.0,38012.0,106.90779148]
[1643978347649,0.69993718,38013.0,38012.0,106.90779148]
[1643978348050,0.88107604,38013.0,38012.0,106.90779148]
[1643978348249,0.44671914,38013.0,38012.0,106.90779148]
[1643978348450,0.627858,38013.0,38012.0,106.90779148]
[1643978348650,0.71259299,38013.0,38012.0,106.90779148]
[1643978348854,0.89373185,38013.0,38012.0,106.90779148]
[1643978349103,0.71259299,38013.0,38012.0,106.90779148]
[1643978349296,1.09525771,38013.0,38012.0,106.90779148]
[1643978349697,0.89373185,38013.0,38012.0,106.90779148]
[1643978350297,0.99428115,38013.0,38012.0,106.90779148]
[1643978350701,1.12660808,38013.0,38012.0,106.90779148]
[1643978351301,1.12660808,38013.0,38012.0,106.51293748]
[1643978351898,1.12660808,38013.0,38012.0,106.11808748]
[1643978352299,1.12660808,38013.0,38012.0,105.72323948]
[1643978352944,0.89373185,38013.0,38012.0,105.72323948]
[1643978353452,0.96101748,38013.0,38012.0,105.72323948]
[1643978353647,1.30222434,38013.0,38012.0,105.72323948]
[1643978354047,1.51060019,38013.0,38012.0,105.32835348]
[1643978354248,1.58060019,38013.0,38012.0,105.32835348]
[1643978354449,1.58060019,38013.0,38012.0,104.42233725]
[1643978354648,1.58060019,38013.0,38012.0,104.02746525]
[1643978355248,1.58060019,38013.0,38012.0,103.63260225]
[1643978355448,1.9152821,38013.0,38012.0,103.63260225]
[1643978355655,1.9152821,38013.0,38012.0,103.23769325]
[1643978355656,3.11334652,38013.0,38012.0,103.23769325]
[1643978355852,3.11334652,38013.0,38012.0,101.96055178]
[1643978356055,2.92225889,38013.0,38012.0,101.46138678]
[1643978356250,2.96640526,38013.0,38012.0,99.15342617]
[1643978356448,2.96640526,38013.0,38012.0,98.75845317]
[1643978356699,3.09806426,38013.0,38012.0,98.36346617]
[1643978356898,2.96640526,38013.0,38012.0,97.50764591]
[1643978357100,2.96640526,38013.0,38012.0,96.98098954]
[1643978357298,2.72480319,38013.0,38012.0,96.52016754]
[1643978357502,2.72480319,38013.0,38012.0,94.12752576]
[1643978357699,2.72480319,38013.0,38012.0,93.73254876]
[1643978357899,1.77229119,38013.0,38012.0,92.58245149]
[1643978358100,1.83651273,38013.0,38012.0,92.18750649]
[1643978358302,1.48391534,38013.0,38012.0,92.18750649]
[1643978359098,1.68354429,38013.0,38012.0,92.18750649]
[1643978361353,2.10354429,38013.0,38012.0,92.18750649]
[1643978362151,1.72277648,38013.0,38012.0,92.18750649]
[1643978362352,1.9697115,38013.0,38012.0,92.18750649]
[1643978362750,1.96971817,38013.0,38012.0,92.18750649]
[1643978363151,2.21473582,38013.0,38012.0,92.18750649]
[1643978366805,0.48843806,38013.0,38012.0,92.23750649]
[1643978367003,0.25,38013.0,38012.0,92.23750649]
[1643978367400,0.15,38013.0,38012.0,92.23750649]
[1643978372003,0.10984179,38013.0,38012.0,92.23750649]
[1643978372200,0.1,38013.0,38012.0,92.23750649]
[1643978373200,0.15,38013.0,38012.0,92.23750649]
[1643978377848,0.15,38013.0,38012.0,91.48264382]
[1643978397955,0.15,38013.0,38012.0,90.72778253]
[1643978399255,0.15,38013.0,38012.0,90.72800257]
[1643978399852,0.3659633,38013.0,38012.0,90.72800257]
[1643978400055,0.15,38013.0,38012.0,90.72800257]
[1643978400253,0.15,38013.0,38012.0,90.72778253]
[1643978400456,0.15,38013.0,38012.0,90.72800257]
[1643978401456,0.15,38013.0,38012.0,90.72778253]
[1643978401702,0.15,38013.0,38012.0,90.72800257]
[1643978403704,0.43930166,38016.0,38012.0,90.72800257]
[1643978403908,0.23115005,38017.0,38015.0,0.05]
[1643978404107,0.05,38017.0,38015.0,0.05]
[1643978404603,0.05,38017.0,38015.0,0.37677824]
[1643978404803,28.65038558,38020.0,38015.0,0.37677824]
[1643978405004,28.65038558,38020.0,38015.0,0.32677824]
[1643978405005,0.05,38019.0,38015.0,0.32677824]
[1643978405207,0.05,38019.0,38018.0,0.05]
[1643978405763,0.05,38019.0,38018.0,0.02639772]
[1643978407659,0.38930166,38019.0,38018.0,0.02639772]
[1643978410108,0.39930166,38019.0,38018.0,0.02639772]
[1643978411607,0.49930166,38019.0,38018.0,0.02639772]
[1643978413752,0.49930166,38019.0,38017.0,0.00101696]
[1643978413753,0.39558908,38019.0,38017.0,0.00101696]
[1643978413952,0.6606193,38019.0,38018.0,6.368e-05]
[1643978414152,0.00993632,38018.0,38017.0,0.00101696]
[1643978414353,0.00993632,38018.0,38015.0,0.28740381]
[1643978414552,0.02360228,38016.0,38015.0,0.28740381]
[1643978414753,0.36306406,38016.0,38015.0,0.02639772]
[1643978415153,0.4493981,38016.0,38015.0,0.02639772]
[1643978416454,0.10993632,38016.0,38015.0,0.02639772]
[1643978416909,0.00993632,38016.0,38015.0,0.02639772]
[1643978418608,0.0335386,38016.0,38015.0,0.02639772]
[1643978419210,0.00993632,38016.0,38015.0,0.02639772]
[1643978428564,0.00993632,38016.0,38015.0,0.02541121]
[1643978432605,0.02458879,38018.0,38015.0,0.02541121]
[1643978433006,0.01993632,38016.0,38015.0,0.02541121]
[1643978435752,0.31993632,38016.0,38015.0,0.02541121]
[1643978436053,0.39452511,38016.0,38015.0,0.02541121]
[1643978436753,0.49452511,38016.0,38015.0,0.02541121]
[1643978436957,0.49452511,38016.0,38014.0,0.30598048]
[1643978437153,0.49452511,38016.0,38014.0,0.33037469]
[1643978437352,0.01993632,38015.0,38014.0,0.33037469]
[1643978438354,0.01447186,38015.0,38014.0,0.33037469]
[1643978441204,0.06447186,38015.0,38014.0,0.33037469]
[1643978445361,0.0629274,38015.0,38014.0,0.33037469]
[1643978446608,0.3629274,38015.0,38014.0,0.33037469]
[1643978447606,0.0629274,38015.0,38014.0,0.33037469]
[1643978447805,0.1629274,38015.0,38014.0,0.33037469]
[1643978448808,0.0629274,38015.0,38014.0,0.33037469]
[1643978449108,0.12458879,38016.0,38014.0,0.33037469]
[1643978450754,0.07458879,38016.0,38014.0,0.33037469]
[1643978453554,0.07458879,38016.0,38014.0,0.09159803]
[1643978458557,0.07458879,38016.0,38014.0,0.06618682]
[1643978460661,0.0525,38015.0,38014.0,0.06618682]
[1643978461906,0.07458879,38016.0,38014.0,0.06618682]
[1643978462109,0.0525,38015.0,38014.0,0.06618682]
[1643978463908,0.0625,38015.0,38014.0,0.06618682]
[1643978464111,0.128287,38015.0,38014.0,0.06618682]
[1643978467363,0.1181641,38015.0,38014.0,0.06618682]
[1643978467561,0.1381641,38015.0,38014.0,0.06618682]
[1643978467764,0.0723771,38015.0,38014.0,0.06618682]
[1643978468163,0.1223771,38015.0,38014.0,0.06618682]
[1643978468363,0.5723771,38015.0,38014.0,0.06618682]
[1643978468764,0.6723771,38015.0,38014.0,0.06618682]
[1643978473958,0.2223771,38015.0,38014.0,0.06618682]
[1643978474356,0.4723771,38015.0,38014.0,0.06618682]
[1643978474656,0.5723771,38015.0,38014.0,0.06618682]
[1643978474856,0.2223771,38015.0,38014.0,0.06618682]
[1643978475156,0.17,38015.0,38014.0,0.06618682]
[1643978475757,0.07,38015.0,38014.0,0.06618682]
[1643978478221,0.37,38015.0,38014.0,0.06618682]
[1643978478419,0.47,38015.0,38014.0,0.06618682]
[1643978480762,0.47,38015.0,38014.0,0.06625048]
[1643978481760,0.24937279,38016.0,38014.0,0.06625048]
[1643978481761,0.43050403,38016.0,38014.0,0.06625048]
[1643978481959,0.58901134,38016.0,38014.0,0.06625048]
[1643978482161,0.33963855,38015.0,38014.0,0.06625048]
[1643978483161,0.58901134,38016.0,38014.0,0.06625048]
[1643978486915,0.24937279,38016.0,38014.0,0.06625048]
[1643978487113,0.18358879,38016.0,38014.0,0.06625048]
[1643978488560,0.24937279,38016.0,38014.0,0.06625048]
[1643978490960,0.58901134,38016.0,38014.0,0.06625048]
[1643978491613,0.24937279,38016.0,38014.0,0.06625048]
[1643978495008,0.51,38015.0,38014.0,0.06625048]
[1643978495210,0.569,38015.0,38014.0,0.06625048]
[1643978495455,0.669,38015.0,38014.0,0.06625048]
[1643978496656,1.00859522,38015.0,38014.0,0.06625048]
[1643978497056,1.18973528,38015.0,38014.0,0.06625048]
[1643978498861,0.68973528,38015.0,38014.0,0.06625048]
[1643978499309,0.50859522,38015.0,38014.0,0.06625048]
[1643978502315,0.40859522,38015.0,38014.0,0.06625048]
[1643978506372,0.069,38015.0,38014.0,0.06625048]
[1643978506618,0.40859928,38015.0,38014.0,0.06615136]
[1643978507019,0.059,38015.0,38013.0,0.00095271]
[1643978507216,0.059,38015.0,38013.0,0.00117318]
[1643978507217,1.83948501,38014.0,38013.0,0.00117318]
[1643978507416,1.16233581,38014.0,38013.0,0.00117318]
[1643978507614,1.34347587,38014.0,38013.0,0.00117318]
[1643978507813,1.36347587,38014.0,38013.0,0.00081248]
[1643978508014,1.36347587,38014.0,38013.0,0.00022047]
[1643978508214,1.34347587,38014.0,38012.0,90.678003]
[1643978508414,0.79716102,38013.0,38012.0,90.678003]
[1643978508613,1.17781719,38013.0,38012.0,90.678003]
[1643978508813,1.27781719,38013.0,38012.0,90.678003]
[1643978509013,1.30781719,38013.0,38012.0,90.678003]
[1643978510116,1.64392231,38013.0,38012.0,90.678003]
[1643978510964,1.61392231,38013.0,38012.0,90.678003]
[1643978511366,1.65392231,38013.0,38012.0,90.678003]
[1643978511766,1.39187282,38013.0,38012.0,90.678003]
[1643978512368,1.35187282,38013.0,38012.0,90.678003]
[1643978512667,1.40187282,38013.0,38012.0,90.678003]
[1643978513566,1.2572236,38013.0,38012.0,90.658003]
[1643978513768,1.68385655,38013.0,38012.0,90.658003]
[1643978514214,1.3272138,38013.0,38012.0,90.658003]
[1643978514409,1.3272132,38013.0,38012.0,90.658003]
[1643978515009,1.68383118,38013.0,38012.0,90.658003]
[1643978515210,1.28775617,38013.0,38012.0,90.658003]
[1643978516711,1.19724006,38013.0,38012.0,90.658003]
[1643978517113,1.04724006,38013.0,38012.0,90.658003]
[1643978517711,0.8661,38013.0,38012.0,90.658003]
[1643978518359,1.0661,38013.0,38012.0,90.658003]
[1643978518559,0.329,38013.0,38012.0,90.658003]
[1643978518961,0.129,38013.0,38012.0,90.658003]
[1643978519361,0.129,38013.0,38012.0,90.68341421]
[1643978519560,0.129,38013.0,38012.0,90.658003]
[1643978520263,0.12,38013.0,38012.0,90.658003]
[1643978521463,0.17,38013.0,38012.0,90.658003]
[1643978522908,0.17,38013.0,38012.0,90.68341421]
[1643978524010,0.17,38013.0,38012.0,90.658003]
[1643978528265,0.229,38013.0,38012.0,90.658003]
[1643978528667,0.579,38013.0,38012.0,90.658003]
[1643978528868,0.65507501,38013.0,38012.0,90.658003]
[1643978529118,0.91622271,38013.0,38012.0,90.658003]
[1643978529510,0.38513924,38013.0,38012.0,90.658003]
[1643978529713,0.73508611,38013.0,38012.0,90.658003]
[1643978530113,0.83289952,38013.0,38012.0,90.658003]
[1643978530317,1.61451146,38013.0,38012.0,90.658003]
[1643978530514,1.71565916,38013.0,38012.0,90.658003]
[1643978530814,1.4612053,38013.0,38012.0,90.658003]
[1643978532614,1.45916122,38013.0,38012.0,89.75191941]
[1643978532862,1.41301703,38013.0,38012.0,89.75191941]
[1643978533260,1.32301703,38013.0,38012.0,89.75191941]
[1643978533661,1.41671703,38013.0,38012.0,89.75191941]
[1643978534461,1.31890362,38013.0,38012.0,89.75191941]
[1643978535467,1.31890362,38013.0,38012.0,89.35701841]
[1643978536062,1.31890362,38013.0,38012.0,88.96210841]
[1643978536264,1.39556765,38013.0,38012.0,88.96210841]
[1643978536716,1.30186765,38013.0,38012.0,88.56718341]
[1643978536916,1.40186765,38013.0,38012.0,88.56718341]
[1643978537119,1.40186765,38013.0,38012.0,88.17226241]
[1643978537714,1.40186765,38013.0,38012.0,87.77735341]
[1643978538915,1.40186765,38013.0,38012.0,87.38244441]
[1643978539415,1.40186765,38013.0,38012.0,86.98753341]
[1643978539616,1.1272477,38013.0,38012.0,86.98753341]
[1643978540018,0.9461,38013.0,38012.0,86.98753341]
[1643978540217,0.9461,38013.0,38012.0,86.98435302]
[1643978540463,1.12729444,38013.0,38012.0,86.58943402]
[1643978540665,0.9461,38013.0,38012.0,86.58943402]
[1643978541063,1.12729686,38013.0,38012.0,86.58943402]
[1643978541264,1.0461,38013.0,38012.0,86.58943402]
[1643978541464,1.1461,38013.0,38012.0,86.58943402]
[1643978541665,1.5923656,38013.0,38012.0,86.58943402]
[1643978541867,1.32729457,38013.0,38012.0,86.58943402]
[1643978542064,1.40525684,38013.0,38012.0,86.58943402]
[1643978542864,1.48329013,38013.0,38012.0,86.58943402]
[1643978543066,1.32729491,38013.0,38012.0,86.58943402]
[1643978543464,1.1461,38013.0,38012.0,86.58943402]
[1643978544917,1.32728865,38013.0,38012.0,86.58943402]
[1643978545117,1.1461,38013.0,38012.0,86.58943402]
[1643978546919,1.32728312,38013.0,38012.0,86.58943402]
[1643978549265,1.69222592,38013.0,38012.0,86.58943402]
[1643978550464,1.32728312,38013.0,38012.0,86.58943402]
[1643978551070,1.6875602,38013.0,38012.0,86.58943402]
[1643978551267,1.32307532,38013.0,38012.0,86.58943402]
[1643978553599,1.32307532,38013.0,38012.0,86.58943403]
[1643978553999,1.68667116,38013.0,38012.0,86.58943403]
[1643978554596,1.68667116,38013.0,38012.0,86.58949767]
[1643978555464,1.89290898,38013.0,38012.0,86.58949767]
[1643978555664,1.52931314,38013.0,38012.0,86.58949767]
[1643978556865,1.32307532,38013.0,38012.0,86.58949767]
[1643978558067,1.69538182,38013.0,38012.0,86.58949767]
[1643978558470,1.12728312,38013.0,38012.0,86.58949767]
[1643978558674,1.12728312,38013.0,38012.0,86.61490888]
[1643978558675,0.33118312,38013.0,38012.0,86.61490888]
[1643978559106,0.15,38013.0,38012.0,86.61490888]
[1643978559502,0.15,38013.0,38012.0,86.9094419]
[1643978559704,0.49115963,38019.0,38013.0,0.65]
[1643978559705,0.23118312,38019.0,38013.0,0.65]
[1643978559903,0.25577191,38019.0,38018.0,0.02541121]
[1643978560100,0.23118312,38019.0,38018.0,0.02541121]
[1643978560301,0.05,38019.0,38018.0,0.02541121]
[1643978560804,0.07458879,38019.0,38018.0,0.02541121]
[1643978561003,0.05,38019.0,38018.0,0.02541121]
[1643978561203,0.14245238,38019.0,38018.0,0.02541121]
[1643978561408,0.14245238,38019.0,38018.0,0.28437282]
[1643978561603,0.32359899,38019.0,38018.0,0.28437282]
[1643978561802,0.5463806,38019.0,38018.0,0.28437282]
[1643978562205,0.6463806,38019.0,38018.0,0.28437282]
[1643978562405,0.7463806,38019.0,38018.0,0.28437282]
[1643978563448,0.7463806,38019.0,38018.0,0.02541121]
[1643978563651,0.58938399,38019.0,38017.0,0.02541121]
[1643978564349,0.58938399,38019.0,38017.0,0.25352739]
[1643978564750,0.58938399,38019.0,38017.0,0.24852739]
[1643978565152,0.61397278,38019.0,38017.0,0.24852739]
[1643978566607,0.58938399,38019.0,38017.0,0.24852739]
[1643978567298,0.57153857,38019.0,38017.0,0.24852739]
[1643978568100,0.47908619,38019.0,38018.0,0.32650835]
[1643978568301,0.47908619,38019.0,38017.0,0.24852739]
[1643978568499,0.47908619,38019.0,38017.0,0.24352739]
[1643978568900,0.47908619,38019.0,38017.0,0.24434938]
[1643978569102,0.55552526,38019.0,38017.0,0.0262332]
[1643978569304,0.01,38018.0,38017.0,0.00082199]
[1643978569901,0.03458879,38018.0,38017.0,0.0262332]
[1643978570102,0.09358879,38018.0,38017.0,0.0262332]
[1643978570347,0.069,38018.0,38017.0,0.0262332]
[1643978572149,0.15136297,38018.0,38017.0,0.0262332]
[1643978572950,0.20136297,38018.0,38017.0,0.0262332]
[1643978579048,0.20136297,38018.0,38017.0,0.0162332]
[1643978581351,0.06,38018.0,38017.0,0.0162332]
[1643978583505,0.11,38018.0,38017.0,0.0162332]
[1643978587474,28.133,38020.0,38019.0,0.68696637]
[1643978588070,28.133,38020.0,38019.0,1.03360237]
[1643978588470,28.13150736,38020.0,38019.0,1.04483557]
[1643978589318,28.13150736,38020.0,38019.0,0.69819957]
[1643978589717,27.52783841,38020.0,38019.0,0.69819957]
[1643978591421,27.52783841,38020.0,38019.0,1.04483557]
[1643978592019,27.52783841,38020.0,38019.0,0.69819957]
[1643978594666,27.57783841,38020.0,38019.0,0.69819957]
[1643978594865,27.57783841,38020.0,38019.0,0.74819957]
[1643978596914,27.57783841,38020.0,38019.0,0.29179326]
[1643978599715,27.57783841,38020.0,38019.0,0.63842926]
[1643978599916,27.56783841,38020.0,38019.0,0.63842926]
[1643978600114,27.58603841,38020.0,38019.0,0.63842926]
[1643978600369,27.58603841,38020.0,38019.0,0.29179326]
[1643978601971,27.58603841,38020.0,38019.0,0.63842926]
[1643978602273,27.58603841,38020.0,38019.0,0.0112332]
[1643978602473,27.63603841,38020.0,38019.0,0.3578692]
[1643978602673,27.61783841,38020.0,38019.0,0.0112332]
[1643978602872,27.64603841,38020.0,38019.0,0.0112332]
[1643978608264,27.64603841,38020.0,38013.0,0.00022048]
[1643978608471,0.0387668,38016.0,38013.0,0.00022048]
[1643978608665,0.0387668,38016.0,38015.0,0.0112332]
[1643978609065,0.0977668,38016.0,38015.0,0.0112332]
[1643978609265,0.36308775,38016.0,38015.0,0.0112332]
[1643978610065,0.67699135,38016.0,38015.0,0.0112332]
[1643978610468,0.74277735,38016.0,38015.0,0.0112332]
[1643978610666,0.84277735,38016.0,38015.0,0.0112332]
[1643978610867,0.89277735,38016.0,38015.0,0.0112332]
[1643978611925,0.65238159,38016.0,38015.0,0.0112332]
[1643978612226,0.65238159,38016.0,38013.0,0.00022048]
[1643978612426,0.4387668,38014.0,38013.0,0.00022048]
[1643978612627,0.065791,38013.0,38012.0,86.58949767]
[1643978612825,0.124791,38013.0,38012.0,86.60073087]
[1643978613425,0.172991,38013.0,38012.0,86.58949767]
[1643978613629,0.172991,38013.0,38012.0,86.58938007]
[1643978614025,0.2117578,38013.0,38012.0,86.58938007]
[1643978614225,0.1072,38013.0,38012.0,86.60061327]
[1643978615026,0.1572,38013.0,38012.0,86.60061327]
[1643978615464,0.2072,38013.0,38012.0,86.60061327]
[1643978617967,0.1572,38013.0,38012.0,86.60061327]
[1643978619320,0.2072,38013.0,38012.0,86.60061327]
[1643978619818,0.109,38013.0,38012.0,86.60061327]
[1643978621822,0.05,38013.0,38012.0,86.94724927]
[1643978622022,0.05,38016.0,38013.0,0.346636]
[1643978622223,0.05,38016.0,38015.0,0.0112332]
[1643978622523,0.05,38016.0,38015.0,0.3578692]
[1643978622721,0.05,38016.0,38015.0,0.31190449]
[1643978622976,0.05,38016.0,38015.0,0.32313769]
[1643978624781,0.05,38016.0,38015.0,0.66977369]
[1643978625779,0.05,38016.0,38015.0,0.32313769]
[1643978626179,0.05,38016.0,38015.0,0.32320132]
[1643978626628,0.05,38016.0,38015.0,0.6596494]
[1643978626817,0.05,38016.0,38015.0,1.0062854]
[1643978627418,0.05,38016.0,38015.0,0.66983732]
[1643978628217,0.05,38016.0,38015.0,0.32320132]
[1643978629021,0.05,38016.0,38015.0,0.66983732]
[1643978631670,0.05,38016.0,38015.0,0.65860412]
[1643978631869,0.05,38016.0,38015.0,0.66983732]
[1643978633973,0.05,38016.0,38015.0,0.77653732]
[1643978638968,0.05,38016.0,38015.0,0.42990132]
[1643978640569,0.0887668,38016.0,38015.0,0.42990132]
[1643978643520,0.05,38016.0,38015.0,0.42990132]
[1643978644523,0.05,38016.0,38015.0,0.41866812]
[1643978644721,0.08787615,38016.0,38015.0,0.42990132]
[1643978645866,0.08787615,38016.0,38015.0,0.41866812]
[1643978646166,0.08787615,38016.0,38015.0,0.42990132]
[1643978646366,0.08787615,38016.0,38015.0,0.41866812]
[1643978646567,0.04910935,38016.0,38015.0,0.42990132]
[1643978647567,0.08787615,38016.0,38015.0,0.42990132]
[1643978647767,0.04910935,38016.0,38015.0,0.42990132]
[1643978647968,0.04910935,38016.0,38015.0,0.77653732]
[1643978649823,0.05,38018.0,38015.0,0.81530412]
[1643978650021,0.05,38018.0,38017.0,0.05]
[1643978650221,0.08300852,38019.0,38017.0,0.05]
[1643978650420,0.08300852,38019.0,38015.0,0.41866812]
[1643978650621,0.08300852,38019.0,38016.0,0.05]
[1643978651121,0.08300852,38019.0,38018.0,0.05]
[1643978651319,0.48300852,38019.0,38016.0,0.05]
[1643978651522,0.48300852,38019.0,38018.0,0.05]
[1643978651720,0.48300852,38019.0,38016.0,0.05]
[1643978652120,0.47800852,38019.0,38016.0,0.05]
[1643978652325,0.47800852,38019.0,38015.0,0.41866812]
[1643978652622,0.47800852,38019.0,38016.0,0.05]
[1643978652865,0.47800852,38019.0,38015.0,0.46866812]
[1643978653067,0.01,38017.0,38015.0,0.41866812]
[1643978653267,0.01,38017.0,38015.0,0.46866812]
[1643978653668,0.01,38016.0,38015.0,0.46866812]
[1643978655970,0.005,38016.0,38015.0,0.41866812]
[1643978656618,0.00611,38016.0,38015.0,0.41856812]
[1643978659027,0.00111,38016.0,38015.0,0.10676363]
[1643978659422,0.01611,38016.0,38015.0,0.10676363]
[1643978661975,0.43749972,38016.0,38015.0,0.10676363]
[1643978662175,0.12511,38016.0,38015.0,0.10676363]
[1643978662776,0.07511,38016.0,38015.0,0.10676363]
[1643978666420,0.07511,38016.0,38015.0,0.10666363]
[1643978667319,0.07511,38016.0,38015.0,0.10656363]
[1643978667994,0.05726337,38016.0,38015.0,0.10656363]
[1643978668795,0.05726337,38016.0,38015.0,0.10646363]
[1643978669397,0.32647368,38016.0,38015.0,0.10646363]
[1643978669597,0.05726337,38016.0,38015.0,0.10646363]
[1643978669797,0.05726337,38016.0,38015.0,0.10636363]
[1643978671400,0.06726337,38016.0,38015.0,0.10636363]
[1643978674123,0.01,38016.0,38015.0,0.10636363]
[1643978676371,0.26315021,38018.0,38015.0,0.10636363]
[1643978676573,0.26456952,38019.0,38015.0,0.10636363]
[1643978676574,0.02,38016.0,38015.0,0.10636363]
[1643978676771,0.02,38016.0,38015.0,0.10626363]
[1643978678973,0.07,38016.0,38015.0,0.10626363]
[1643978679820,27.27697597,38020.0,38015.0,0.10626363]
[1643978679821,27.05198572,38020.0,38015.0,0.10626363]
[1643978680420,0.10452395,38019.0,38015.0,0.10626363]
[1643978681222,0.15452395,38019.0,38015.0,0.10626363]
[1643978684668,0.22030395,38019.0,38015.0,0.10626363]
[1643978686170,0.40142183,38019.0,38015.0,0.10616363]
[1643978686629,0.22030395,38019.0,38015.0,0.10616363]
[1643978686826,0.40142132,38019.0,38015.0,0.10616363]
[1643978687029,0.23111737,38019.0,38016.0,0.3680883]